[Event "Titled Tuesday Blitz December 13 Early 2022"]
[White "Jobava, Baadur"]
[Black "Firouzja, Alireza"]
[WhiteFideId "13601520"]
[BlackFideId "12573981"]
[WhiteElo "2582"]
[BlackElo "2904"]
[Result "1-0"]
[Round "06"]
[TimeControl "180+1"]
[Date "2022.12.13"]
[WhiteClock "0:00:24"]
[BlackClock "0:00:22"]

1. e4 {[%clk 0:03:00]}  c6 {[%clk 0:02:57]} 2. c4 {[%clk 0:02:59]}  d5 {[%clk 0:02:56]} 3. exd5 {[%clk 0:03:00]}  cxd5 {[%clk 0:02:57]} 4. d4 {[%clk 0:03:01]}  Nf6 {[%clk 0:02:56]} 5. Nc3 {[%clk 0:03:01]}  e6 {[%clk 0:02:52]} 6. c5 {[%clk 0:03:01]}  Nc6 {[%clk 0:02:46]} 7. Nf3 {[%clk 0:02:57]}  a6 {[%clk 0:02:42]} 8. Rb1 {[%clk 0:02:51]}  g6 {[%clk 0:02:41]} 9. Bd3 {[%clk 0:02:45]}  Bg7 {[%clk 0:02:41]} 10. O-O {[%clk 0:02:40]}  O-O {[%clk 0:02:41]} 11. b4 {[%clk 0:02:29]}  Ng4 {[%clk 0:02:27]} 12. h3 {[%clk 0:02:07]}  Nh6 {[%clk 0:02:14]} 13. a4 {[%clk 0:01:50]}  Nxd4 {[%clk 0:01:44]} 14. Nxd4 {[%clk 0:01:38]}  Bxd4 {[%clk 0:01:45]} 15. Bxh6 {[%clk 0:01:36]}  Bxc3 {[%clk 0:01:45]} 16. Bxf8 {[%clk 0:01:34]}  Qxf8 {[%clk 0:01:37]} 17. Qf3 {[%clk 0:01:19]}  a5 {[%clk 0:01:14]} 18. bxa5 {[%clk 0:00:58]}  Bd4 {[%clk 0:00:56]} 19. a6 {[%clk 0:00:55]}  bxa6 {[%clk 0:00:56]} 20. c6 {[%clk 0:00:55]}  Qd6 {[%clk 0:00:55]} 21. Rfc1 {[%clk 0:00:54]}  e5 {[%clk 0:00:55]} 22. c7 {[%clk 0:00:47]}  Ra7 {[%clk 0:00:49]} 23. Rb8 {[%clk 0:00:44]}  Qd7 {[%clk 0:00:34]} 24. Qg4 {[%clk 0:00:24]}  f5 {[%clk 0:00:22]} 25. Bxf5 {[%clk 0:00:24]} 1-0


[Site "https://www.chess.com"]

[Event "Titled Tuesday Blitz December 13 Early 2022"]
[White "Kaidanov, Gregory"]
[Black "Rian, Kapriaga"]
[WhiteFideId "2008564"]
[BlackFideId "7103263"]
[WhiteElo "2547"]
[BlackElo "2263"]
[Result "0-1"]
[Round "06"]
[TimeControl "180+1"]
[Date "2022.12.14"]
[WhiteClock "0:00:49"]
[BlackClock "0:00:28"]

1. Nf3 {[%clk 0:03:00]}  d5 {[%clk 0:02:59]} 2. g3 {[%clk 0:03:01]}  c6 {[%clk 0:02:58]} 3. Bg2 {[%clk 0:03:01]}  f5 {[%clk 0:02:58]} 4. O-O {[%clk 0:03:01]}  Nf6 {[%clk 0:02:57]} 5. d3 {[%clk 0:03:01]}  e6 {[%clk 0:02:58]} 6. Nbd2 {[%clk 0:03:02]}  Bd6 {[%clk 0:02:58]} 7. e4 {[%clk 0:03:01]}  e5 {[%clk 0:02:54]} 8. exf5 {[%clk 0:02:54]}  Bxf5 {[%clk 0:02:53]} 9. Re1 {[%clk 0:02:54]}  Nbd7 {[%clk 0:02:52]} 10. Nxe5 {[%clk 0:02:48]}  O-O {[%clk 0:02:51]} 11. Ndf3 {[%clk 0:02:44]}  Re8 {[%clk 0:02:43]} 12. Bf4 {[%clk 0:02:42]}  Nh5 {[%clk 0:02:34]} 13. Nxc6 {[%clk 0:02:41]}  bxc6 {[%clk 0:02:30]} 14. Bxd6 {[%clk 0:02:39]}  Qf6 {[%clk 0:02:25]} 15. Nd4 {[%clk 0:02:31]}  Bg6 {[%clk 0:02:15]} 16. Rxe8+ {[%clk 0:02:05]}  Rxe8 {[%clk 0:02:13]} 17. Bf3 {[%clk 0:02:02]}  Nxg3 {[%clk 0:01:22]} 18. Bxg3 {[%clk 0:01:39]}  Qxd4 {[%clk 0:01:19]} 19. Qd2 {[%clk 0:01:23]}  Ne5 {[%clk 0:01:03]} 20. Bg2 {[%clk 0:01:19]}  Rf8 {[%clk 0:00:51]} 21. Bxe5 {[%clk 0:01:17]}  Qxe5 {[%clk 0:00:51]} 22. c3 {[%clk 0:01:17]}  Re8 {[%clk 0:00:46]} 23. d4 {[%clk 0:01:12]}  Qe6 {[%clk 0:00:45]} 24. Kf1 {[%clk 0:01:06]}  h6 {[%clk 0:00:42]} 25. b4 {[%clk 0:01:01]}  a6 {[%clk 0:00:41]} 26. a4 {[%clk 0:01:01]}  Be4 {[%clk 0:00:35]} 27. f3 {[%clk 0:00:53]}  Bf5 {[%clk 0:00:35]} 28. Kf2 {[%clk 0:00:53]}  Qf6 {[%clk 0:00:32]} 29. Re1 {[%clk 0:00:49]}  Qh4+ {[%clk 0:00:31]} 30. Kf1 {[%clk 0:00:49]}  Rxe1+ {[%clk 0:00:28]} 31. Qxe1 {[%clk 0:00:49]}  Bd3+ {[%clk 0:00:28]} 0-1


[Site "https://www.chess.com"]

[Event "Titled Tuesday Blitz December 13 Early 2022"]
[White "Kamsky, Gata"]
[Black "Harsh Suresh"]
[WhiteFideId "2000024"]
[BlackFideId "45018464"]
[WhiteElo "2666"]
[BlackElo "2227"]
[Result "1-0"]
[Round "06"]
[TimeControl "180+1"]
[Date "2022.12.13"]
[WhiteClock "0:00:01"]
[BlackClock "0:00:01"]

1. d4 {[%clk 0:03:00]}  Nf6 {[%clk 0:02:59]} 2. Bf4 {[%clk 0:02:57]}  g6 {[%clk 0:02:54]} 3. c3 {[%clk 0:02:56]}  Bg7 {[%clk 0:02:54]} 4. Nf3 {[%clk 0:02:54]}  O-O {[%clk 0:02:54]} 5. Nbd2 {[%clk 0:02:52]}  d6 {[%clk 0:02:50]} 6. e4 {[%clk 0:02:46]}  c5 {[%clk 0:02:48]} 7. dxc5 {[%clk 0:02:46]}  dxc5 {[%clk 0:02:47]} 8. h3 {[%clk 0:02:46]}  Nc6 {[%clk 0:02:47]} 9. Be2 {[%clk 0:02:44]}  h6 {[%clk 0:02:44]} 10. O-O {[%clk 0:02:42]}  Be6 {[%clk 0:02:43]} 11. Re1 {[%clk 0:02:35]}  Kh7 {[%clk 0:02:25]} 12. a4 {[%clk 0:02:25]}  Nd7 {[%clk 0:02:15]} 13. Bc4 {[%clk 0:02:19]}  Nde5 {[%clk 0:02:07]} 14. Nxe5 {[%clk 0:02:16]}  Bxe5 {[%clk 0:02:05]} 15. Be3 {[%clk 0:02:08]}  b6 {[%clk 0:01:59]} 16. Bxe6 {[%clk 0:02:02]}  fxe6 {[%clk 0:01:59]} 17. Nc4 {[%clk 0:02:02]}  Qc7 {[%clk 0:01:49]} 18. Qg4 {[%clk 0:01:51]}  Rf6 {[%clk 0:01:35]} 19. g3 {[%clk 0:01:50]}  g5 {[%clk 0:01:25]} 20. Kg2 {[%clk 0:01:41]}  Raf8 {[%clk 0:01:18]} 21. h4 {[%clk 0:01:38]}  gxh4 {[%clk 0:01:14]} 22. Qxh4 {[%clk 0:01:37]}  Bd6 {[%clk 0:01:00]} 23. Rh1 {[%clk 0:01:22]}  Ne5 {[%clk 0:00:30]} 24. Nxe5 {[%clk 0:01:21]}  Bxe5 {[%clk 0:00:30]} 25. f4 {[%clk 0:01:13]}  Bd6 {[%clk 0:00:31]} 26. e5 {[%clk 0:01:07]}  Qc6+ {[%clk 0:00:31]} 27. Kh3 {[%clk 0:00:24]}  Rf5 {[%clk 0:00:25]} 28. Qg4 {[%clk 0:00:10]}  Rg8 {[%clk 0:00:17]} 29. Qe2 {[%clk 0:00:09]}  Bxe5 {[%clk 0:00:06]} 30. fxe5 {[%clk 0:00:09]}  Qe4 {[%clk 0:00:06]} 31. Raf1 {[%clk 0:00:04]}  Rgf8 {[%clk 0:00:02]} 32. Rxf5 {[%clk 0:00:04]}  Rxf5 {[%clk 0:00:02]} 33. Re1 {[%clk 0:00:03]}  Rxe5 {[%clk 0:00:02]} 34. Qg4 {[%clk 0:00:01]}  Qd3 {[%clk 0:00:01]} 35. Qf4 {[%clk 0:00:01]}  Rf5 {[%clk 0:00:01]} 36. Qxh6+ {[%clk 0:00:01]}  Kg8 {[%clk 0:00:01]} 37. Qg6+ {[%clk 0:00:02]}  Kf8 {[%clk 0:00:01]} 38. Bh6# {[%clk 0:00:01]} 1-0


[Site "https://www.chess.com"]

[Event "Titled Tuesday Blitz December 13 Early 2022"]
[White "Koellner, Ruben Gideon"]
[Black "Paravyan, David"]
[WhiteFideId "12993093"]
[BlackFideId "4194985"]
[WhiteElo "2303"]
[BlackElo "2551"]
[Result "1/2-1/2"]
[Round "06"]
[TimeControl "180+1"]
[Date "2022.12.13"]
[WhiteClock "0:00:04"]
[BlackClock "0:00:03"]

1. d4 {[%clk 0:03:00]}  Nf6 {[%clk 0:02:57]} 2. Nf3 {[%clk 0:02:56]}  g6 {[%clk 0:02:58]} 3. Nbd2 {[%clk 0:02:57]}  d5 {[%clk 0:02:57]} 4. e3 {[%clk 0:02:57]}  Bg7 {[%clk 0:02:57]} 5. b4 {[%clk 0:02:57]}  a5 {[%clk 0:02:56]} 6. b5 {[%clk 0:02:58]}  c5 {[%clk 0:02:56]} 7. bxc6 {[%clk 0:02:58]}  Nxc6 {[%clk 0:02:56]} 8. a4 {[%clk 0:02:59]}  O-O {[%clk 0:02:56]} 9. Ba3 {[%clk 0:02:59]}  Bf5 {[%clk 0:02:55]} 10. c3 {[%clk 0:02:59]}  Ne4 {[%clk 0:02:53]} 11. Nxe4 {[%clk 0:02:57]}  dxe4 {[%clk 0:02:54]} 12. Nd2 {[%clk 0:02:57]}  Re8 {[%clk 0:02:41]} 13. Bb5 {[%clk 0:02:56]}  e5 {[%clk 0:02:38]} 14. O-O {[%clk 0:02:39]}  Qg5 {[%clk 0:02:36]} 15. d5 {[%clk 0:02:25]}  Bh3 {[%clk 0:02:29]} 16. g3 {[%clk 0:02:24]}  Bxf1 {[%clk 0:02:29]} 17. Qxf1 {[%clk 0:02:17]}  Ne7 {[%clk 0:01:37]} 18. Bxe8 {[%clk 0:02:12]}  Rxe8 {[%clk 0:01:36]} 19. Nxe4 {[%clk 0:02:10]}  Qg4 {[%clk 0:01:36]} 20. f3 {[%clk 0:02:02]}  Qd7 {[%clk 0:01:26]} 21. c4 {[%clk 0:01:47]}  Nf5 {[%clk 0:01:25]} 22. Bc1 {[%clk 0:01:18]}  Rc8 {[%clk 0:01:14]} 23. Qd3 {[%clk 0:01:09]}  Nd6 {[%clk 0:01:07]} 24. Nxd6 {[%clk 0:01:07]}  Qxd6 {[%clk 0:00:51]} 25. Ba3 {[%clk 0:01:06]}  Qd7 {[%clk 0:00:50]} 26. Rc1 {[%clk 0:00:31]}  Qxa4 {[%clk 0:00:47]} 27. d6 {[%clk 0:00:23]}  e4 {[%clk 0:00:42]} 28. fxe4 {[%clk 0:00:21]}  Rd8 {[%clk 0:00:19]} 29. c5 {[%clk 0:00:19]}  h5 {[%clk 0:00:13]} 30. Kg2 {[%clk 0:00:18]}  h4 {[%clk 0:00:13]} 31. Rc4 {[%clk 0:00:17]}  Qd7 {[%clk 0:00:13]} 32. gxh4 {[%clk 0:00:12]}  Qg4+ {[%clk 0:00:13]} 33. Kf2 {[%clk 0:00:12]}  Bf6 {[%clk 0:00:11]} 34. Ke1 {[%clk 0:00:11]}  Bxh4+ {[%clk 0:00:11]} 35. Kd2 {[%clk 0:00:12]}  Qg2+ {[%clk 0:00:08]} 36. Qe2 {[%clk 0:00:11]}  Qh3 {[%clk 0:00:09]} 37. e5 {[%clk 0:00:10]}  Bg5 {[%clk 0:00:09]} 38. Kd3 {[%clk 0:00:09]}  Qf5+ {[%clk 0:00:09]} 39. Re4 {[%clk 0:00:08]}  Qe6 {[%clk 0:00:07]} 40. Qc2 {[%clk 0:00:07]}  Rc8 {[%clk 0:00:03]} 41. Qc4 {[%clk 0:00:06]}  Qf5 {[%clk 0:00:03]} 42. e6 {[%clk 0:00:06]}  b5 {[%clk 0:00:02]} 43. exf7+ {[%clk 0:00:06]}  Kh7 {[%clk 0:00:02]} 44. Qd4 {[%clk 0:00:05]}  Bf6 {[%clk 0:00:02]} 45. d7 {[%clk 0:00:02]}  Rd8 {[%clk 0:00:02]} 46. f8=Q {[%clk 0:00:01]}  Rxf8 {[%clk 0:00:02]} 47. Qd6 {[%clk 0:00:02]}  Bg7 {[%clk 0:00:02]} 48. d8=Q {[%clk 0:00:01]}  Rxd8 {[%clk 0:00:02]} 49. Qxd8 {[%clk 0:00:02]}  Qf1+ {[%clk 0:00:02]} 50. Kd2 {[%clk 0:00:02]}  Qg2+ {[%clk 0:00:02]} 51. Kd3 {[%clk 0:00:03]}  Qf1+ {[%clk 0:00:02]} 52. Kc2 {[%clk 0:00:03]}  Qg2+ {[%clk 0:00:03]} 53. Kd3 {[%clk 0:00:04]}  Qf1+ {[%clk 0:00:03]} 1/2-1/2


[Site "https://www.chess.com"]

[Event "Titled Tuesday Blitz December 13 Early 2022"]
[White "Kopylov, Alexander A."]
[Black "Pajeken, Jakob Leon"]
[WhiteFideId "4164857"]
[BlackFideId "12942839"]
[WhiteElo "2436"]
[BlackElo "2414"]
[Result "1-0"]
[Round "06"]
[TimeControl "180+1"]
[Date "2022.12.14"]
[WhiteClock "0:02:01"]
[BlackClock "0:02:03"]

1. e4 {[%clk 0:02:52]}  e5 {[%clk 0:02:58]} 2. Nf3 {[%clk 0:02:52]}  Nc6 {[%clk 0:02:59]} 3. Nc3 {[%clk 0:02:48]}  Nf6 {[%clk 0:02:57]} 4. h3 {[%clk 0:02:48]}  a6 {[%clk 0:02:53]} 5. d4 {[%clk 0:02:48]}  exd4 {[%clk 0:02:51]} 6. Nxd4 {[%clk 0:02:48]}  Nxe4 {[%clk 0:02:48]} 7. Nxe4 {[%clk 0:02:48]}  Qe7 {[%clk 0:02:48]} 8. Bd3 {[%clk 0:02:49]}  Nxd4 {[%clk 0:02:48]} 9. O-O {[%clk 0:02:49]}  Ne6 {[%clk 0:02:48]} 10. Re1 {[%clk 0:02:49]}  d6 {[%clk 0:02:42]} 11. Bg5 {[%clk 0:02:35]}  f6 {[%clk 0:02:39]} 12. Bh4 {[%clk 0:02:34]}  Bd7 {[%clk 0:02:28]} 13. Qe2 {[%clk 0:02:09]}  d5 {[%clk 0:02:14]} 14. Qh5+ {[%clk 0:02:04]}  Qf7 {[%clk 0:02:07]} 15. Qxd5 {[%clk 0:02:05]}  O-O-O {[%clk 0:02:02]} 16. Bc4 {[%clk 0:02:01]}  Bc6 {[%clk 0:02:03]} 17. Qxe6+ {[%clk 0:02:01]} 1-0


[Site "https://www.chess.com"]

[Event "Titled Tuesday Blitz December 13 Early 2022"]
[White "Kostiukov, Alexandr"]
[Black "Urazayev, Arystanbek"]
[WhiteFideId "14108100"]
[BlackFideId "13709810"]
[WhiteElo "2202"]
[BlackElo "2463"]
[Result "0-1"]
[Round "06"]
[TimeControl "180+1"]
[Date "2022.12.14"]
[WhiteClock "0:01:54"]
[BlackClock "0:02:38"]

1. g3 {[%clk 0:02:52]}  e5 {[%clk 0:02:58]} 2. Bg2 {[%clk 0:02:52]}  Bc5 {[%clk 0:02:59]} 3. c4 {[%clk 0:02:49]}  Ne7 {[%clk 0:02:59]} 4. Nc3 {[%clk 0:02:48]}  d6 {[%clk 0:02:59]} 5. e3 {[%clk 0:02:48]}  a6 {[%clk 0:03:00]} 6. d4 {[%clk 0:02:45]}  exd4 {[%clk 0:02:57]} 7. exd4 {[%clk 0:02:46]}  Ba7 {[%clk 0:02:58]} 8. Nge2 {[%clk 0:02:46]}  O-O {[%clk 0:02:58]} 9. O-O {[%clk 0:02:46]}  Nbc6 {[%clk 0:02:59]} 10. h3 {[%clk 0:02:46]}  Nf5 {[%clk 0:02:58]} 11. d5 {[%clk 0:02:42]}  Ne5 {[%clk 0:02:58]} 12. b3 {[%clk 0:02:40]}  Re8 {[%clk 0:02:53]} 13. Kh2 {[%clk 0:02:37]}  Bd7 {[%clk 0:02:51]} 14. Nf4 {[%clk 0:02:32]}  Qf6 {[%clk 0:02:49]} 15. Bb2 {[%clk 0:02:29]}  Qh6 {[%clk 0:02:45]} 16. Qd2 {[%clk 0:02:18]}  Ng4+ {[%clk 0:02:43]} 17. Kh1 {[%clk 0:02:13]}  Nxf2+ {[%clk 0:02:40]} 18. Rxf2 {[%clk 0:02:09]}  Nxg3+ {[%clk 0:02:40]} 19. Kh2 {[%clk 0:02:04]}  Be3 {[%clk 0:02:40]} 20. Qe1 {[%clk 0:01:54]}  Bxf4 {[%clk 0:02:39]} 21. Rxf4 {[%clk 0:01:54]}  Rxe1 {[%clk 0:02:38]} 0-1


[Site "https://www.chess.com"]

[Event "Titled Tuesday Blitz December 13 Early 2022"]
[White "Kuchava, Ana"]
[Black "Ljukin, Sergei"]
[WhiteFideId "13605348"]
[BlackFideId "14102200"]
[WhiteElo "2001"]
[BlackElo "2312"]
[Result "0-1"]
[Round "06"]
[TimeControl "180+1"]
[Date "2022.12.14"]
[WhiteClock "0:00:03"]
[BlackClock "0:00:59"]

1. d4 {[%clk 0:03:00]}  d5 {[%clk 0:02:59]} 2. Nf3 {[%clk 0:02:51]}  Nf6 {[%clk 0:02:58]} 3. c4 {[%clk 0:02:47]}  c6 {[%clk 0:02:58]} 4. Qb3 {[%clk 0:02:44]}  a5 {[%clk 0:02:55]} 5. Nc3 {[%clk 0:02:39]}  a4 {[%clk 0:02:55]} 6. Nxa4 {[%clk 0:02:38]}  dxc4 {[%clk 0:02:55]} 7. Qc2 {[%clk 0:02:33]}  b5 {[%clk 0:02:54]} 8. Nc3 {[%clk 0:02:28]}  Na6 {[%clk 0:02:50]} 9. Bd2 {[%clk 0:02:18]}  Nb4 {[%clk 0:02:46]} 10. Qd1 {[%clk 0:02:03]}  Bf5 {[%clk 0:02:20]} 11. e4 {[%clk 0:01:41]}  Bg6 {[%clk 0:02:09]} 12. Be2 {[%clk 0:01:14]}  e6 {[%clk 0:02:06]} 13. Bg5 {[%clk 0:00:53]}  Be7 {[%clk 0:02:01]} 14. Bxf6 {[%clk 0:00:44]}  Bxf6 {[%clk 0:02:01]} 15. O-O {[%clk 0:00:43]}  O-O {[%clk 0:01:56]} 16. a4 {[%clk 0:00:33]}  Qb6 {[%clk 0:01:41]} 17. axb5 {[%clk 0:00:22]}  cxb5 {[%clk 0:01:41]} 18. Rxa8 {[%clk 0:00:21]}  Rxa8 {[%clk 0:01:40]} 19. d5 {[%clk 0:00:20]}  Rd8 {[%clk 0:01:12]} 20. e5 {[%clk 0:00:17]}  Nxd5 {[%clk 0:01:10]} 21. Qc1 {[%clk 0:00:05]}  Nxc3 {[%clk 0:01:08]} 22. Qxc3 {[%clk 0:00:06]}  Be7 {[%clk 0:01:07]} 23. b3 {[%clk 0:00:07]}  Bd3 {[%clk 0:01:02]} 24. Bd1 {[%clk 0:00:03]}  b4 {[%clk 0:00:59]} 0-1


[Site "https://www.chess.com"]

[Event "Titled Tuesday Blitz December 13 Early 2022"]
[White "Lauridsen, Jesper Morch"]
[Black "Mazurkiewicz, Michal"]
[WhiteFideId "1401890"]
[BlackFideId "1124943"]
[WhiteElo "2297"]
[BlackElo "2081"]
[Result "0-1"]
[Round "06"]
[TimeControl "180+1"]
[Date "2022.12.14"]
[WhiteClock "0:00:07"]
[BlackClock "0:00:44"]

1. e4 {[%clk 0:03:00]}  d6 {[%clk 0:03:00]} 2. d4 {[%clk 0:03:00]}  Nf6 {[%clk 0:03:00]} 3. Nc3 {[%clk 0:03:00]}  c6 {[%clk 0:03:01]} 4. f4 {[%clk 0:02:59]}  Qb6 {[%clk 0:03:01]} 5. Nf3 {[%clk 0:02:58]}  Bg4 {[%clk 0:03:01]} 6. Be2 {[%clk 0:02:42]}  e6 {[%clk 0:03:01]} 7. O-O {[%clk 0:02:37]}  d5 {[%clk 0:03:01]} 8. e5 {[%clk 0:02:32]}  Nfd7 {[%clk 0:02:59]} 9. Ng5 {[%clk 0:02:22]}  Bxe2 {[%clk 0:02:55]} 10. Nxe2 {[%clk 0:02:14]}  g6 {[%clk 0:02:55]} 11. Be3 {[%clk 0:02:03]}  Be7 {[%clk 0:02:53]} 12. c4 {[%clk 0:01:43]}  dxc4 {[%clk 0:02:43]} 13. Ne4 {[%clk 0:01:38]}  O-O {[%clk 0:02:29]} 14. Rf3 {[%clk 0:01:34]}  Rd8 {[%clk 0:02:20]} 15. d5 {[%clk 0:01:30]}  Qa5 {[%clk 0:02:03]} 16. d6 {[%clk 0:01:06]}  Bf8 {[%clk 0:02:03]} 17. Rh3 {[%clk 0:01:04]}  Bg7 {[%clk 0:02:01]} 18. Bd4 {[%clk 0:00:52]}  b5 {[%clk 0:01:59]} 19. Qc2 {[%clk 0:00:41]}  c5 {[%clk 0:01:55]} 20. Bf2 {[%clk 0:00:33]}  Nc6 {[%clk 0:01:54]} 21. Ng5 {[%clk 0:00:29]}  h6 {[%clk 0:01:51]} 22. Nxe6 {[%clk 0:00:28]}  fxe6 {[%clk 0:01:49]} 23. Qxg6 {[%clk 0:00:28]}  Nf8 {[%clk 0:01:50]} 24. Qg4 {[%clk 0:00:26]}  Qd2 {[%clk 0:01:32]} 25. Rxh6 {[%clk 0:00:18]}  Qxb2 {[%clk 0:01:32]} 26. Rf1 {[%clk 0:00:16]}  Qc2 {[%clk 0:01:32]} 27. Rh3 {[%clk 0:00:13]}  Qf5 {[%clk 0:01:32]} 28. Qg3 {[%clk 0:00:12]}  Kf7 {[%clk 0:01:21]} 29. Bxc5 {[%clk 0:00:11]}  Ng6 {[%clk 0:01:21]} 30. Qf3 {[%clk 0:00:11]}  Rh8 {[%clk 0:01:18]} 31. Rxh8 {[%clk 0:00:10]}  Rxh8 {[%clk 0:01:16]} 32. Ng3 {[%clk 0:00:10]}  Qd3 {[%clk 0:01:16]} 33. f5 {[%clk 0:00:09]}  exf5 {[%clk 0:00:56]} 34. Qxc6 {[%clk 0:00:08]}  Nxe5 {[%clk 0:00:47]} 35. Rxf5+ {[%clk 0:00:08]}  Kg6 {[%clk 0:00:44]} 36. d7+ {[%clk 0:00:07]}  Nxc6 {[%clk 0:00:44]} 0-1


[Site "https://www.chess.com"]

[Event "Titled Tuesday Blitz December 13 Early 2022"]
[White "Lehtosaari, Mauri"]
[Black "Samarth, J Rao"]
[WhiteFideId "501999"]
[BlackFideId "46652370"]
[WhiteElo "2507"]
[BlackElo "1564"]
[Result "1-0"]
[Round "06"]
[TimeControl "180+1"]
[Date "2022.12.14"]
[WhiteClock "0:01:27"]
[BlackClock "0:00:15"]

1. d4 {[%clk 0:03:00]}  d5 {[%clk 0:02:42]} 2. Nf3 {[%clk 0:03:00]}  Nf6 {[%clk 0:02:36]} 3. Bg5 {[%clk 0:03:00]}  h6 {[%clk 0:02:33]} 4. Bxf6 {[%clk 0:02:59]}  gxf6 {[%clk 0:02:25]} 5. e3 {[%clk 0:02:58]}  e6 {[%clk 0:02:20]} 6. c4 {[%clk 0:02:58]}  c6 {[%clk 0:01:33]} 7. Nc3 {[%clk 0:02:57]}  Nd7 {[%clk 0:01:32]} 8. Bd3 {[%clk 0:02:50]}  f5 {[%clk 0:01:25]} 9. a3 {[%clk 0:02:47]}  Bd6 {[%clk 0:00:49]} 10. cxd5 {[%clk 0:02:42]}  cxd5 {[%clk 0:00:47]} 11. g3 {[%clk 0:02:23]}  Nf6 {[%clk 0:00:41]} 12. Rc1 {[%clk 0:02:05]}  a6 {[%clk 0:00:15]} 13. Ne2 {[%clk 0:01:27]} 1-0


[Site "https://www.chess.com"]

[Event "Titled Tuesday Blitz December 13 Early 2022"]
[White "Martinez Ramirez, Lennis"]
[Black "Deuer, Marius"]
[WhiteFideId "3509079"]
[BlackFideId "16236432"]
[WhiteElo "2439"]
[BlackElo "2226"]
[Result "0-1"]
[Round "06"]
[TimeControl "180+1"]
[Date "2022.12.14"]
[WhiteClock "0:00:15"]
[BlackClock "0:00:18"]

1. c4 {[%clk 0:03:00]}  Nf6 {[%clk 0:02:56]} 2. Nc3 {[%clk 0:02:55]}  c5 {[%clk 0:02:55]} 3. e3 {[%clk 0:02:53]}  e6 {[%clk 0:02:51]} 4. d4 {[%clk 0:02:52]}  cxd4 {[%clk 0:02:52]} 5. exd4 {[%clk 0:02:53]}  Bb4 {[%clk 0:02:50]} 6. Nf3 {[%clk 0:02:54]}  b6 {[%clk 0:02:49]} 7. Bd3 {[%clk 0:02:53]}  Bb7 {[%clk 0:02:49]} 8. O-O {[%clk 0:02:53]}  O-O {[%clk 0:02:50]} 9. Bg5 {[%clk 0:02:52]}  h6 {[%clk 0:02:49]} 10. Bh4 {[%clk 0:02:52]}  Be7 {[%clk 0:02:47]} 11. Bc2 {[%clk 0:02:40]}  d5 {[%clk 0:02:31]} 12. cxd5 {[%clk 0:02:35]}  Nxd5 {[%clk 0:02:28]} 13. Qd3 {[%clk 0:02:28]}  g6 {[%clk 0:02:11]} 14. Bxe7 {[%clk 0:02:20]}  Qxe7 {[%clk 0:02:12]} 15. Nxd5 {[%clk 0:02:16]}  Bxd5 {[%clk 0:02:13]} 16. Ne5 {[%clk 0:02:16]}  Nc6 {[%clk 0:02:10]} 17. Qg3 {[%clk 0:01:59]}  Nxd4 {[%clk 0:02:03]} 18. Bd3 {[%clk 0:01:57]}  Qg5 {[%clk 0:01:59]} 19. Rfd1 {[%clk 0:01:34]}  Qxg3 {[%clk 0:01:48]} 20. hxg3 {[%clk 0:01:35]}  Rfd8 {[%clk 0:01:46]} 21. g4 {[%clk 0:01:30]}  Nc6 {[%clk 0:01:44]} 22. Nf3 {[%clk 0:01:21]}  Bxf3 {[%clk 0:01:04]} 23. gxf3 {[%clk 0:01:22]}  Ne5 {[%clk 0:01:03]} 24. Be2 {[%clk 0:01:16]}  g5 {[%clk 0:00:55]} 25. Kg2 {[%clk 0:01:09]}  Ng6 {[%clk 0:00:55]} 26. Ba6 {[%clk 0:01:08]}  Nf4+ {[%clk 0:00:53]} 27. Kg3 {[%clk 0:01:08]}  Nd5 {[%clk 0:00:44]} 28. a3 {[%clk 0:01:06]}  Nc7 {[%clk 0:00:42]} 29. Bb7 {[%clk 0:01:03]}  Rab8 {[%clk 0:00:42]} 30. Be4 {[%clk 0:01:03]}  Ne8 {[%clk 0:00:40]} 31. f4 {[%clk 0:01:03]}  Nf6 {[%clk 0:00:39]} 32. Bf3 {[%clk 0:01:02]}  gxf4+ {[%clk 0:00:35]} 33. Kxf4 {[%clk 0:01:03]}  Kg7 {[%clk 0:00:36]} 34. b4 {[%clk 0:01:00]}  Rbc8 {[%clk 0:00:35]} 35. b5 {[%clk 0:00:59]}  Rc4+ {[%clk 0:00:33]} 36. Kg3 {[%clk 0:00:58]}  Rdc8 {[%clk 0:00:33]} 37. a4 {[%clk 0:00:57]}  Rc3 {[%clk 0:00:31]} 38. Kg2 {[%clk 0:00:57]}  R8c4 {[%clk 0:00:31]} 39. a5 {[%clk 0:00:43]}  Rf4 {[%clk 0:00:30]} 40. Be2 {[%clk 0:00:33]}  Rc2 {[%clk 0:00:30]} 41. Bf3 {[%clk 0:00:26]}  Rc3 {[%clk 0:00:27]} 42. Be2 {[%clk 0:00:26]}  Nxg4 {[%clk 0:00:27]} 43. Rf1 {[%clk 0:00:25]}  Nf6 {[%clk 0:00:18]} 44. axb6 {[%clk 0:00:24]}  axb6 {[%clk 0:00:18]} 45. Ra6 {[%clk 0:00:24]}  Rc2 {[%clk 0:00:19]} 46. Bf3 {[%clk 0:00:24]}  Rc5 {[%clk 0:00:19]} 47. Rxb6 {[%clk 0:00:24]}  Rg5+ {[%clk 0:00:19]} 48. Kh2 {[%clk 0:00:22]}  Rxf3 {[%clk 0:00:19]} 49. Rb7 {[%clk 0:00:22]}  Rf4 {[%clk 0:00:18]} 50. Kh3 {[%clk 0:00:20]}  Rfg4 {[%clk 0:00:18]} 51. f3 {[%clk 0:00:15]}  Rh5# {[%clk 0:00:18]} 0-1


[Site "https://www.chess.com"]

[Event "Titled Tuesday Blitz December 13 Early 2022"]
[White "Mesa Cruz, Juan Carlos"]
[Black "Derjabin, Ilja"]
[WhiteFideId "6423400"]
[BlackFideId "14104768"]
[WhiteElo "2059"]
[BlackElo "2309"]
[Result "0-1"]
[Round "06"]
[TimeControl "180+1"]
[Date "2022.12.14"]
[WhiteClock "0:00:03"]
[BlackClock "0:01:41"]

1. e4 {[%clk 0:03:00]}  c5 {[%clk 0:02:54]} 2. Nf3 {[%clk 0:02:59]}  d6 {[%clk 0:02:54]} 3. d4 {[%clk 0:02:59]}  cxd4 {[%clk 0:02:55]} 4. Nxd4 {[%clk 0:02:59]}  Nf6 {[%clk 0:02:55]} 5. Nc3 {[%clk 0:02:59]}  a6 {[%clk 0:02:55]} 6. Bg5 {[%clk 0:02:59]}  e6 {[%clk 0:02:54]} 7. f4 {[%clk 0:02:59]}  Be7 {[%clk 0:02:54]} 8. Qf3 {[%clk 0:02:58]}  h6 {[%clk 0:02:53]} 9. Bh4 {[%clk 0:02:53]}  Nbd7 {[%clk 0:02:51]} 10. f5 {[%clk 0:01:38]}  Ne5 {[%clk 0:02:48]} 11. Qg3 {[%clk 0:01:30]}  Nh5 {[%clk 0:02:45]} 12. Bxe7 {[%clk 0:01:25]}  Qxe7 {[%clk 0:02:36]} 13. Qh3 {[%clk 0:01:08]}  Nf4 {[%clk 0:02:27]} 14. Qg3 {[%clk 0:00:33]}  g5 {[%clk 0:02:22]} 15. O-O-O {[%clk 0:00:28]}  Bd7 {[%clk 0:02:21]} 16. Qf2 {[%clk 0:00:12]}  Rc8 {[%clk 0:02:10]} 17. g3 {[%clk 0:00:12]}  Nh5 {[%clk 0:02:10]} 18. Be2 {[%clk 0:00:11]}  Nf6 {[%clk 0:02:08]} 19. fxe6 {[%clk 0:00:10]}  fxe6 {[%clk 0:02:07]} 20. Rhf1 {[%clk 0:00:11]}  Rf8 {[%clk 0:02:06]} 21. h3 {[%clk 0:00:08]}  Rxc3 {[%clk 0:02:04]} 22. bxc3 {[%clk 0:00:09]}  Nxe4 {[%clk 0:01:57]} 23. Bh5+ {[%clk 0:00:08]}  Nf7 {[%clk 0:01:53]} 24. Qf3 {[%clk 0:00:06]}  d5 {[%clk 0:01:53]} 25. c4 {[%clk 0:00:04]}  Kd8 {[%clk 0:01:40]} 26. Bxf7 {[%clk 0:00:03]}  Rxf7 {[%clk 0:01:41]} 0-1


[Site "https://www.chess.com"]